fUST/lending_fUST_20240410
["ID","MTS","AMOUNT","RATE_DAILY","PERIOD"]
[322035140,1712703048943,-302.135223,0.00021277,2]
[322035141,1712703048953,-302.135223,0.00021277,2]
[322035142,1712703048963,-302.135223,0.00021277,2]
[322035143,1712703048974,-302.135223,0.00021277,2]
[322035144,1712703048985,-302.135223,0.00021277,2]
[322035145,1712703048996,-302.135223,0.00021277,2]
[322035146,1712703049006,-302.135223,0.00021277,2]
[322035147,1712703049017,-302.135223,0.00021277,2]
[322035148,1712703049027,-302.135223,0.00021277,2]
[322035149,1712703049037,-302.135223,0.00021277,2]
[322035150,1712703049048,-302.135223,0.00021277,2]
[322035151,1712703049058,-302.135223,0.00021277,2]
[322035152,1712703049067,-302.135223,0.00021277,2]
[322035153,1712703049077,-302.135229,0.00021277,2]
[322035154,1712703049086,-155.559444,0.00021277,2]
[322035155,1712703049095,-155.38716655,0.00021278,2]
[322035156,1712703049106,-248.33962604,0.00021278,2]
[322035157,1712703049117,-162.05813444,0.00021278,2]
[322035158,1712703049128,-159.52451092,0.00021278,2]
[322035159,1712703049138,-232.74121,0.00021278,2]
[322035160,1712703049148,-232.74121,0.00021278,2]
[322035161,1712703049159,-228.756963,0.00021278,2]
[322035162,1712703049168,-228.756963,0.00021278,2]
[322035163,1712703049177,-232.74121,0.0002128,2]
[322035164,1712703049187,-232.74121,0.0002128,2]
[322035165,1712703049196,-228.756963,0.0002128,2]
[322035166,1712703049206,-228.756963,0.0002128,2]
[322035167,1712703049215,-2000.0,0.000219,2]
[322035168,1712703049224,-265.70825665,0.00021998,2]
[322035169,1712703049234,-157.58732679,0.00021998,2]
[322035170,1712703049245,-156.18040776,0.00021998,2]
[322035171,1712703049258,-1584.45097755,0.00021999,2]
[322035172,1712703049267,-155.69437185,0.00021999,2]
[322035173,1712703049277,-640.33470756,0.00021999,2]
[322035174,1712703049286,-211.87262261,0.00021999,2]
[322035175,1712703049297,-155.79864413,0.00021999,2]
[322035176,1712703049307,-255.77184681,0.00021999,2]
[322035177,1712703049316,-232.74121,0.00021999,2]
[322035178,1712703049327,-232.74121,0.00021999,2]
[322035179,1712703049336,-228.756963,0.00021999,2]
[322035180,1712703049346,-228.756963,0.00021999,2]
[322035181,1712703049355,-3143.86627224,0.00022,2]
[322035182,1712703049399,-574.35266824,0.00022,2]
[322035183,1712703049409,-159.87003339,0.00022142,2]
[322035184,1712703049418,-243.97160787,0.00023,2]
[322035185,1712703049428,-420.0,0.00023122,2]
[322035186,1712703049437,-159.87003339,0.00023349,2]
[322035187,1712703049446,-310.68459813,0.00023503,2]
[322035188,1712703049455,-232.82966774,0.0002392,2]
[322035189,1712703049466,-156.6294846,0.0002441,2]
[322035190,1712703049475,-236.9267,0.00024534,2]
[322035191,1712703049484,-232.74121,0.00024556,2]
[322035192,1712703049494,-232.74121,0.00024556,2]
[322035193,1712703049503,-228.756963,0.00024556,2]
[322035194,1712703049514,-228.756963,0.00024556,2]
[322035195,1712703049524,-159.87003339,0.00024557,2]
[322035197,1712703049534,-2329.72042126,0.00024557,2]
[322035198,1712703049543,-232.74121,0.00024632,2]
[322035199,1712703049553,-232.74121,0.00024632,2]
[322035200,1712703049564,-228.756963,0.00024632,2]
[322035201,1712703049575,-228.756963,0.00024632,2]
[322035202,1712703049585,-8137.16432705,0.00024632,2]
[322035203,1712703049595,-6970.45809239,0.00024654,2]
[322035204,1712703049607,-2248.1300057,0.00024654,2]
[322035205,1712703049616,-155.92399903,0.00024654,2]
[322035206,1712703049627,-232.74121,0.00024654,2]
[322035207,1712703049640,-232.74121,0.00024654,2]
[322035208,1712703049650,-228.756963,0.00024654,2]
[322035209,1712703049659,-228.756963,0.00024654,2]
[322035210,1712703049670,-720.32924775,0.00024655,2]
[322035211,1712703049679,-500.0,0.00024657,2]
[322035212,1712703049688,-503.30373975,0.00024657,2]
[322035213,1712703049698,-500.0,0.00024657,2]
[322035214,1712703049707,-500.0,0.00024657,2]
[322035215,1712703049716,-500.0,0.00024657,2]
[322035216,1712703049725,-713.2,0.00024657,2]
[322035217,1712703049734,-1238.88,0.00024657,2]
[322035218,1712703049743,-500.0,0.00024657,2]
[322035219,1712703049752,-500.0,0.00024657,2]
[322035220,1712703049761,-340.35534432,0.00024657,2]
[322035221,1712703049770,-500.0,0.00024657,2]
[322035222,1712703049779,-500.0,0.00024657,2]
[322035223,1712703049788,-500.0,0.00024657,2]
[322035224,1712703049797,-500.0,0.00024657,2]
[322035225,1712703049806,-153.51497499,0.00024657,2]
[322035226,1712703049815,-500.0,0.00024657,2]
[322035227,1712703049824,-500.0,0.00024657,2]
[322035228,1712703049833,-500.0,0.00024657,2]
[322035229,1712703049842,-500.0,0.00024657,2]
[322035230,1712703049850,-500.0,0.00024657,2]
[322035231,1712703049859,-500.0,0.00024657,2]
[322035232,1712703049868,-500.0,0.00024657,2]
[322035233,1712703049877,-500.0,0.00024657,2]
[322035234,1712703049886,-755.12,0.00024657,2]
[322035235,1712703049896,-500.0,0.00024657,2]
[322035236,1712703049904,-500.0,0.00024657,2]
[322035237,1712703049913,-500.0,0.00024657,2]
[322035238,1712703049923,-500.0,0.00024657,2]
[322035239,1712703049932,-353.40009133,0.00024657,2]
[322035240,1712703049948,-146.59990867,0.00024657,2]
[322035241,1712703049959,-500.0,0.00024657,2]
[322035242,1712703049968,-500.0,0.00024657,2]
[322035243,1712703049978,-500.0,0.00024657,2]
[322035244,1712703049986,-567.08,0.00024657,2]
[322035245,1712703049995,-505.16217187,0.00024657,2]
[322035246,1712703050005,-500.0,0.00024657,2]
[322035247,1712703050014,-500.0,0.00024657,2]
[322035248,1712703050023,-2059.3,0.00024657,2]
[322035249,1712703050031,-500.0,0.00024657,2]
[322035250,1712703050041,-500.0,0.00024657,2]
[322035251,1712703050050,-500.0,0.00024657,2]
[322035252,1712703050059,-500.0,0.00024657,2]
[322035253,1712703050069,-248.9946814,0.00024657,2]
[322035254,1712703050078,-500.0,0.00024657,2]
[322035255,1712703050087,-500.0,0.00024657,2]
[322035256,1712703050096,-500.0,0.00024657,2]
[322035257,1712703050105,-500.0,0.00024657,2]
[322035258,1712703050114,-500.0,0.00024657,2]
[322035259,1712703050123,-500.0,0.00024657,2]
[322035260,1712703050132,-884.36,0.00024657,2]
[322035261,1712703050141,-500.0,0.00024657,2]
[322035262,1712703050150,-500.0,0.00024657,2]
[322035263,1712703050159,-500.0,0.00024657,2]
[322035264,1712703050169,-500.0,0.00024657,2]
[322035265,1712703050178,-500.0,0.00024657,2]
[322035266,1712703050187,-500.0,0.00024657,2]
[322035267,1712703050196,-262.80930096,0.00024657,2]
[322035309,1712703345970,1917.1641716,0.0002097,2]
[322035310,1712703439458,16047.23018457,0.0002097,2]
[322035312,1712703457567,2876.70857004,0.0002097,2]
[322035315,1712703538799,5891.74649372,0.0002097,2]
[322035316,1712703708949,11394.5083319,0.00020203,2]
[322035340,1712703987555,455.86928742,0.000189,2]
[322035343,1712704092409,394.6598698,0.00020977,2]
[322035344,1712704117509,6247.8336397,0.00020417,2]
[322035345,1712704194455,175.620048,0.00020473,2]
[322035388,1712704232817,-1963.97984376,0.00021027,2]
[322035390,1712704232827,-1053.28406115,0.00021027,2]
[322035392,1712704232836,-300.0,0.00021028,2]
[322035394,1712704232846,-300.0,0.00021028,2]
[322035396,1712704232855,-154.9690062,0.00021028,2]
[322035398,1712704232866,-1670.65452215,0.00021029,2]
[322035400,1712704232875,-3735.81357685,0.00021029,2]
[322035402,1712704232884,-10128.61557197,0.00021031,2]
[322035404,1712704232895,-12617.28782495,0.00021031,2]
[322035406,1712704232904,-6329.23669406,0.00021032,2]
[322035408,1712704232914,-2120.0697231,0.00021273,2]
[322035410,1712704232924,-154.9690062,0.00021274,2]
[322035412,1712704232933,-278.04623222,0.00021276,2]
[322035414,1712704232943,-585.43401171,0.00021276,2]
[322035416,1712704232952,-170.92435407,0.00021817,2]
[322035418,1712704232962,-376.57140374,0.00021916,2]
[322035420,1712704232971,-158.89220139,0.00021916,2]
[322035422,1712704232981,-556.40707512,0.00021917,2]
[322035424,1712704232990,-500.0,0.00021917,2]
[322035426,1712704232999,-4582.06,0.00021917,2]
[322035428,1712704233008,-500.0,0.00021917,2]
[322035430,1712704233018,-1187.26,0.00021917,2]
[322035432,1712704233027,-8776.94,0.00021917,2]
[322035434,1712704233036,-500.0,0.00021917,2]
[322035436,1712704233045,-599.48,0.00021917,2]
[322035438,1712704233055,-951.84,0.00021917,2]
[322035440,1712704233064,-500.0,0.00021917,2]
[322035442,1712704233077,-500.0,0.00021917,2]
[322035444,1712704233086,-500.0,0.00021917,2]
[322035446,1712704233095,-3980.77,0.00021917,2]
[322035448,1712704233104,-500.0,0.00021917,2]
[322035450,1712704233115,-500.0,0.00021917,2]
[322035452,1712704233124,-500.0,0.00021917,2]
[322035454,1712704233133,-500.0,0.00021917,2]
[322035456,1712704233142,-500.0,0.00021917,2]
[322035458,1712704233152,-500.0,0.00021917,2]
[322035460,1712704233163,-1274.72,0.00021917,2]
[322035462,1712704233172,-503.76546229,0.00021917,2]
[322035464,1712704233181,-3065.07,0.00021917,2]
[322035466,1712704233191,-500.0,0.00021917,2]
[322035468,1712704233200,-500.0,0.00021917,2]
[322035470,1712704233210,-500.0,0.00021917,2]
[322035472,1712704233220,-500.0,0.00021917,2]
[322035474,1712704233229,-500.0,0.00021917,2]
[322035476,1712704233238,-500.0,0.00021917,2]
[322035478,1712704233247,-4386.5,0.00021917,2]
[322035480,1712704233257,-74.20450814,0.00021917,2]
[322035714,1712704238281,-425.79549186,0.00021917,2]
[322035716,1712704238290,-500.0,0.00021917,2]
[322035718,1712704238299,-501.94390694,0.00021917,2]
[322035720,1712704238308,-500.0,0.00021917,2]
[322035722,1712704238316,-500.0,0.00021917,2]
[322035724,1712704238326,-500.0,0.00021917,2]
[322035726,1712704238334,-4300.84,0.00021917,2]
[322035728,1712704238343,-500.0,0.00021917,2]
[322035730,1712704238353,-500.0,0.00021917,2]
[322035732,1712704238361,-71.03439271,0.00021917,2]
[322036014,1712704240335,-452.51487973,0.00021917,2]
[322036017,1712704240344,-2314.87,0.00021917,2]
[322036020,1712704240353,-539.78,0.00021917,2]
[322036023,1712704240362,-500.0,0.00021917,2]
[322036026,1712704240372,-1012.8,0.00021917,2]
[322036029,1712704240381,-25207.97,0.00021917,2]
[322036032,1712704240390,-723.66,0.00021917,2]
[322036035,1712704240398,-500.0,0.00021917,2]
[322036038,1712704240407,-500.0,0.00021917,2]
[322036041,1712704240415,-500.0,0.00021917,2]
[322036043,1712704240424,-500.0,0.00021917,2]
[322036046,1712704240433,-500.0,0.00021917,2]
[322036049,1712704240442,-220.13815965,0.00021917,2]
[322036052,1712704240450,-500.0,0.00021917,2]
[322036054,1712704240460,-2020.34,0.00021917,2]
[322036056,1712704240468,-165.86285622,0.00021917,2]
[322036058,1712704240477,-500.0,0.00021917,2]
[322036060,1712704240487,-500.0,0.00021917,2]
[322036063,1712704240496,-500.0,0.00021917,2]
[322036066,1712704240507,-1782.33,0.00021917,2]
[322036069,1712704240516,-8644.97,0.00021917,2]
[322036072,1712704240525,-543.45,0.00021917,2]
[322036074,1712704240534,-501.07271869,0.00021917,2]
[322036076,1712704240543,-339.12255361,0.00021917,2]
[322036081,1712704240552,-500.0,0.00021917,2]
[322036083,1712704240562,-500.0,0.00021917,2]
[322036085,1712704240575,-294.44027,0.00021917,2]
[322036087,1712704240585,-308.75985958,0.00021917,2]
[322036089,1712704240594,-500.0,0.00021917,2]
[322036091,1712704240603,-2032.31,0.00021917,2]
[322036093,1712704240613,-500.0,0.00021917,2]
[322036095,1712704240623,-500.0,0.00021917,2]
[322036097,1712704240632,-1873.86,0.00021917,2]
[322036099,1712704240641,-611.87652153,0.00021917,2]
[322036101,1712704240650,-500.0,0.00021917,2]
[322036103,1712704240659,-500.0,0.00021917,2]
[322036105,1712704240668,-302.25005715,0.00021917,2]
[322036107,1712704240677,-500.0,0.00021917,2]
[322036109,1712704240687,-1973.49,0.00021917,2]
[322036111,1712704240696,-500.0,0.00021917,2]
[322036114,1712704240705,-924.56,0.00021917,2]
[322036116,1712704240715,-500.0,0.00021917,2]
[322036117,1712704240723,-500.0,0.00021917,2]
[322036119,1712704240732,-500.0,0.00021917,2]
[322036121,1712704240742,-500.0,0.00021917,2]
[322036123,1712704240751,-451.7113124,0.00021917,2]
[322036125,1712704240760,-500.0,0.00021917,2]
[322036127,1712704240770,-1396.23,0.00021917,2]
[322036129,1712704240780,-500.0,0.00021917,2]
[322036131,1712704240788,-500.0,0.00021917,2]
[322036133,1712704240798,-500.0,0.00021917,2]
[322036135,1712704240807,-15287.21019788,0.00021999,2]
[322036307,1712704243417,-500.0,0.00021917,2]
[322036308,1712704243426,-15026.21569114,0.00021999,2]
[322036309,1712704245529,16195.15601962,0.00025,9]
[322036318,1712704247962,158.90925789,0.00020897,2]
[322036319,1712704265222,1003.0,0.0002499,35]
[322036320,1712704265724,1003.0,0.0002498,35]
[322036321,1712704265947,150.5,0.0002499,35]
[322036322,1712704265983,173.0,0.0002499,35]
[322036323,1712704266321,1003.0,0.0002497,35]
[322036324,1712704266416,201.31,0.0002498,35]
[322036325,1712704266490,173.0,0.0002498,35]
[322036326,1712704267548,173.0,0.0002497,35]
[322036327,1712704283066,169.671673,0.00020683,2]
[322036328,1712704288928,515.47984394,0.00019899,2]
[322036329,1712704377558,156.7454714,0.00020927,2]
[322036330,1712704385650,703.0,0.00024921,35]
[322036331,1712704386335,703.0,0.00024911,35]
[322036332,1712704386654,703.0,0.00024901,35]
[322036333,1712704440553,300.0,0.0002102,2]
[322036334,1712704441334,300.0,0.0002102,2]
[322036336,1712704467551,1670.65452215,0.0002102,2]
[322036337,1712704471974,1963.97984376,0.0002102,2]
[322036339,1712704478131,3735.81357685,0.0002102,2]
[322036340,1712704487956,1053.28406115,0.0002102,2]
[322036341,1712704500557,300.0,0.0002102,2]
[322036342,1712704502559,300.0,0.0002102,2]
[322036343,1712704504655,150.5,0.00024645,35]
[322036344,1712704504991,492.0,0.00024645,35]
[322036345,1712704505135,150.5,0.00024635,35]
[322036346,1712704505724,150.5,0.00024625,35]
[322036347,1712704505763,492.0,0.00024635,35]
[322036348,1712704506134,492.0,0.00024625,35]
[322036349,1712704560633,300.0,0.0002102,2]
[322036350,1712704561423,300.0,0.0002102,2]
[322036351,1712704570457,1053.28406115,0.0002102,2]
[322036352,1712704590105,343.65322929,0.00019899,2]
[322036353,1712704620599,300.0,0.0002102,2]
[322036354,1712704621340,300.0,0.0002102,2]
[322036355,1712704625492,344.0,0.00024373,35]
[322036356,1712704626033,344.0,0.00024363,35]
[322036357,1712704626492,344.0,0.00024353,35]
[322036358,1712704658143,548.76099586,0.0002102,2]
[322036359,1712704664910,15789.7530587,0.00020795,2]
[322036362,1712704680573,300.0,0.0002102,2]
[322036363,1712704681959,234.0,0.0002102,2]
[322036364,1712704682571,884.9156232,0.00020795,2]
[322036365,1712704740611,300.0,0.0002102,2]
[322036366,1712704741993,548.76099586,0.0002102,2]
[322036367,1712704744829,150.5,0.00024373,35]
[322036368,1712704744951,241.0,0.00024373,35]
[322036369,1712704745303,150.5,0.00024363,35]
[322036370,1712704745470,241.0,0.00024363,35]
[322036371,1712704745970,150.5,0.00024353,35]
[322036372,1712704746010,241.0,0.00024353,35]
[322036373,1712704800683,300.0,0.0002102,2]
[322036374,1712704813504,548.76099586,0.0002102,2]
[322036375,1712704860643,300.0,0.0002102,2]
[322036376,1712704861344,300.0,0.0002102,2]
[322036377,1712704864548,169.0,0.00024373,35]
[322036378,1712704865124,169.0,0.00024363,35]
[322036379,1712704865597,169.0,0.00024353,35]
[322036380,1712704880012,548.76099586,0.0002102,2]
[322036381,1712704920576,300.0,0.0002102,2]
[322036382,1712704921444,287.0,0.0002102,2]
[322036383,1712704947017,548.76099586,0.0002102,2]
[322036385,1712704980760,300.0,0.0002102,2]
[322036386,1712704984378,150.5,0.00024373,35]
[322036387,1712704984855,166.4,0.00024363,35]
[322036388,1712704984892,150.5,0.00024373,35]
[322036389,1712704985363,150.5,0.00024363,35]
[322036390,1712704985863,150.5,0.00024353,35]
[322036391,1712705008529,1500.9,0.00026192,60]
[322036393,1712705024351,1125.68,0.00025,10]
[322036394,1712705029530,548.76099586,0.0002102,2]
[322036396,1712705040598,300.0,0.0002102,2]
[322036397,1712705043165,1688.52,0.00025,10]
[322036398,1712705061637,844.26,0.00025,10]
[322036399,1712705071832,188.24196396,0.00020921,2]
[322036400,1712705100558,300.0,0.0002102,2]
[322036401,1712705105637,150.5,0.00024373,35]
[322036402,1712705106063,548.76099586,0.0002102,2]
[322036403,1712705106117,150.5,0.00024363,35]
[322036404,1712705107173,150.5,0.00024353,35]
[322036405,1712705160599,300.0,0.0002102,2]
[322036406,1712705181058,548.76099586,0.0002102,2]
[322036407,1712705193328,421.27305296,0.00020944,2]
[322036408,1712705220593,300.0,0.0002102,2]
[322036409,1712705224780,280.14,0.00024373,35]
[322036410,1712705255558,548.76099586,0.0002102,2]
[322036412,1712705280573,300.0,0.0002102,2]
[322036413,1712705336496,179.165774,0.00020607,2]
[322036414,1712705340593,300.0,0.0002102,2]
[322036415,1712705345083,548.76099586,0.0002102,2]
[322036416,1712705369793,422.13,0.00025,10]
[322036417,1712705400550,300.0,0.0002102,2]
[322036434,1712705432642,-3225.3453258,0.00021021,2]
[322036494,1712705438455,-2377.53171954,0.00021021,2]
[322036496,1712705438466,-2459.47072936,0.00021021,2]
[322036498,1712705438477,-14683.55562222,0.00021021,2]
[322036500,1712705438487,-154.13304689,0.00021357,2]
[322036502,1712705438496,-154.13304687,0.00021424,2]
[322036504,1712705438505,-345.32738604,0.00021457,2]
[322036506,1712705438514,-154.13304687,0.0002149,2]
[322036508,1712705438523,-381.76500217,0.00021557,2]
[322036510,1712705438532,-154.13304687,0.00021557,2]
[322036513,1712705438544,-154.13304687,0.00021624,2]
[322036514,1712705438554,-154.13304687,0.00021691,2]
[322036516,1712705438563,-154.13304687,0.00021757,2]
[322036518,1712705438572,-388.32905711,0.00021777,2]
[322036521,1712705438581,-214.66662237,0.00021817,2]
[322036523,1712705438590,-214.66662235,0.00021886,2]
[322036525,1712705438599,-317.99006007,0.00021915,2]
[322036527,1712705438608,-290.03054013,0.00021915,2]
[322036529,1712705438617,-1055.06729286,0.00021915,2]
[322036531,1712705438627,-239.14405551,0.00021915,2]
[322036533,1712705438635,-500.0,0.00021916,2]
[322036534,1712705438645,-500.0,0.00021916,2]
[322036537,1712705438654,-500.0,0.00021917,2]
[322036539,1712705438664,-500.0,0.00021917,2]
[322036541,1712705438672,-1108.55204387,0.00021917,2]
[322036594,1712705443611,-349.66647012,0.00021917,2]
[322036605,1712706064474,150.5,0.000241,35]
[322036606,1712706064941,150.5,0.0002409,35]
[322036607,1712706065400,150.5,0.0002408,35]
[322036608,1712706098227,229.10215286,0.00019817,2]
[322036728,1712706633005,-188.6336911,0.0002167,2]
[322036729,1712706633014,-141.81300565,0.0002167,2]
[322036730,1712706633064,-1951.48699577,0.0002167,2]
[322036732,1712706633074,-277.03921209,0.00021671,2]
[322036733,1712706633084,-473.2366857,0.00021671,2]
[322036735,1712706633093,-154.13304687,0.00021695,2]
[322036737,1712706633104,-154.13304687,0.00021794,2]
[322036738,1712706633114,-300.0,0.00021799,2]
[322036740,1712706633123,-3895.74241871,0.000218,2]
[322036742,1712706633133,-160.99996677,0.00021817,2]
[322036743,1712706633142,-154.13304687,0.00021893,2]
[322036745,1712706633152,-160.99996676,0.00021908,2]
[322036746,1712706633161,-1166.58642061,0.00021913,2]
[322036747,1712706633171,-155.21795967,0.00021913,2]
[322036748,1712706633180,-58984.79781209,0.00021915,2]
[322036749,1712706633189,-213.35747735,0.00021915,2]
[322036750,1712706633198,-204.01567981,0.00021915,2]
[322036751,1712706633207,-1340.39270719,0.00021915,2]
[322036752,1712706633217,-7092.25835859,0.00021916,2]
[322036753,1712706633226,-242.64289685,0.00021916,2]
[322036754,1712706633235,-329.38023498,0.00021916,2]
[322036755,1712706633244,-500.0,0.00021917,2]
[322036756,1712706633259,-1137.79,0.00021917,2]
[322036757,1712706633268,-500.0,0.00021917,2]
[322036758,1712706633278,-500.0,0.00021917,2]
[322036759,1712706633288,-500.0,0.00021917,2]
[322036760,1712706633299,-500.0,0.00021917,2]
[322036761,1712706633310,-501.64134912,0.00021917,2]
[322036762,1712706633321,-500.0,0.00021917,2]
[322036763,1712706633333,-154.98450155,0.00021917,2]
[322036764,1712706633343,-500.0,0.00021917,2]
[322036765,1712706633352,-219.95292482,0.00021917,2]
[322036766,1712706633362,-500.0,0.00021917,2]
[322036767,1712706633371,-166.29590232,0.00021917,2]
[322036768,1712706633380,-500.0,0.00021917,2]
[322036769,1712706633390,-500.0,0.00021917,2]
[322036770,1712706633399,-693.5,0.00021917,2]
[322036771,1712706633408,-500.0,0.00021917,2]
[322036772,1712706633418,-500.0,0.00021917,2]
[322036773,1712706633427,-520.8,0.00021917,2]
[322036774,1712706633436,-500.0,0.00021917,2]
[322036775,1712706633445,-1891.26,0.00021917,2]
[322036776,1712706633454,-558.95671159,0.00021917,2]
[322036777,1712706633464,-500.0,0.00021917,2]
[322036778,1712706633473,-500.0,0.00021917,2]
[322036779,1712706633482,-500.0,0.00021917,2]
[322036780,1712706633491,-503.83433665,0.00021917,2]
[322036781,1712706633499,-500.0,0.00021917,2]
[322036782,1712706633508,-500.0,0.00021917,2]
[322036783,1712706633517,-500.0,0.00021917,2]
[322036784,1712706633526,-500.0,0.00021917,2]
[322036785,1712706633535,-500.0,0.00021917,2]
[322036786,1712706633545,-847.51,0.00021917,2]
[322036787,1712706633676,-500.0,0.00021917,2]
[322036788,1712706633686,-362.79857014,0.00021917,2]
[322036841,1712706639005,-138.0937906,0.00021917,2]
[322036842,1712706639015,-500.0,0.00021917,2]
[322036843,1712706639026,-500.0,0.00021917,2]
[322036844,1712706639035,-500.0,0.00021917,2]
[322036845,1712706639045,-500.0,0.00021917,2]
[322036846,1712706639055,-500.0,0.00021917,2]
[322036847,1712706639064,-247.00310956,0.00021917,2]
[322036848,1712706639074,-500.0,0.00021917,2]
[322036849,1712706639084,-545.33485395,0.00021917,2]
[322036857,1712706642772,-52.34514605,0.00021917,2]
[322036858,1712706642782,-500.0,0.00021917,2]
[322036859,1712706642791,-76.78268575,0.00021917,2]
[322036860,1712706642802,-423.21731425,0.00021917,2]
[322036861,1712706642811,-174.80326305,0.00021917,2]
[322036862,1712706642822,-147.02911694,0.00021917,2]
[322036863,1712706642831,-171.09298595,0.00021917,2]
[322036887,1712706643309,3442.05631724,0.00025,9]
[322036891,1712706643765,-328.90701405,0.00021917,2]
[322036892,1712706643774,-481.43901605,0.00021917,2]
[322036893,1712706643783,-184.23814281,0.00021917,2]
[322036894,1712706643793,-500.0,0.00021917,2]
[322036895,1712706643802,-500.0,0.00021917,2]
[322036896,1712706643811,-382.84395156,0.00021917,2]
[322036897,1712706643821,-500.0,0.00021917,2]
[322036898,1712706643830,-604.64,0.00021917,2]
[322036899,1712706643839,-265.86994068,0.00021917,2]
[322036900,1712706643849,-531.42,0.00021917,2]
[322036901,1712706643858,-414.02794365,0.00021917,2]
[322036902,1712706643868,-500.0,0.00021917,2]
[322036903,1712706643877,-762.84,0.00021917,2]
[322036904,1712706643886,-500.0,0.00021917,2]
[322036905,1712706643895,-500.0,0.00021917,2]
[322036906,1712706643904,-500.0,0.00021917,2]
[322036907,1712706643914,-270.02691491,0.00021917,2]
[322036908,1712706643923,-500.0,0.00021917,2]
[322036909,1712706643932,-500.0,0.00021917,2]
[322036910,1712706643941,-500.0,0.00021917,2]
[322036911,1712706643951,-500.0,0.00021917,2]
[322036912,1712706643961,-166.16504241,0.00021917,2]
[322036913,1712706643975,-335.74968347,0.00021917,2]
[322036914,1712706643986,-500.0,0.00021917,2]
[322036915,1712706643997,-500.0,0.00021917,2]
[322036916,1712706644007,-500.0,0.00021917,2]
[322036917,1712706644016,-500.0,0.00021917,2]
[322036918,1712706644025,-503.97053309,0.00021917,2]
[322036919,1712706644036,-500.0,0.00021917,2]
[322036920,1712706644046,-536.11,0.00021917,2]
[322036921,1712706644056,-258.79704055,0.00021917,2]
[322036946,1712706701449,152.73476858,0.00019817,2]
[322036947,1712706787929,13036.8849059,0.00020913,2]
[322036948,1712707002735,150.0,0.00019817,2]
[322036954,1712707106174,11082.7736127,0.00020886,2]
[322036974,1712707303888,150.0,0.00019817,2]
[322036975,1712707369742,178.667709,0.00020612,2]
[322037032,1712707831870,-154.13304687,0.00021717,2]
[322037033,1712707831880,-407.69592082,0.000218,2]
[322037034,1712707831889,-188.6336911,0.00021801,2]
[322037035,1712707831899,-384.59125288,0.00021812,2]
[322037036,1712707831908,-279.52131633,0.00021817,2]
[322037037,1712707831919,-196.12053923,0.00021817,2]
[322037038,1712707831928,-475.64185553,0.00021886,2]
[322037039,1712707831937,-277.03921209,0.00021904,2]
[322037040,1712707831946,-177.47811365,0.0002191,2]
[322037131,1712707837877,-122.52188635,0.0002191,2]
[322037133,1712707837887,-15010.26714825,0.00021911,2]
[322037142,1712707838198,-7986.43601234,0.00021911,2]
[322037155,1712707842973,-262.28710111,0.0002191,2]
[322037161,1712707906711,154.70603265,0.00019811,2]
[322037162,1712707984587,150.5,0.00024373,35]
[322037163,1712707985057,150.5,0.00024363,35]
[322037164,1712707985533,196.0,0.00024353,35]
[322037167,1712708208321,150.0,0.00019811,2]
[322037185,1712708509680,150.0,0.00019811,2]
[322037384,1712709043236,-646.55785995,0.00021217,2]
[322037385,1712709043247,-155.3347973,0.00021717,2]